{"text_format":"2","workbook":"xlsx","n_sheets":5,"sheets":["Игроки","Особенности","Умения игроков","Таланты","Совмещения"],"not_rendered":{"charts":0,"images":0,"macros":0,"external_links":0,"defined_names":0,"comments":0,"pivot_tables":0},"unopened":[],"bounds":{"document_bytes":16777216,"sheet_cells":100000,"run_cost":"one","rows_first":2000,"rows_last":500,"rows_between":2000,"halvings":0,"cell_chars":16384,"cell_head_chars":4096},"cells_cut":0,"cells_raw":0,"read":"whole","date_system":"1900"}

{"sheet":"Игроки","index":0,"n_rows":21,"n_cols":22,"rows_kept":21,"cut":false,"hidden":false,"merged":[]}
["OwnerID","TeamName","CityName","StadiumName","Number","Name","LastName","Position","Combination","Age","Talent","Skl","Tck","Mrk","Drb","Rcv","Edu","Pas","Shp","Sha","Aspect","BonusExp"]
[{"$nulls":4},1,null,null,"Gk",null,18,null,40,{"$f":"INDEX('Умения игроков'!$A$1:$I$9,MATCH($H2,'Умения игроков'!$A$1:$A$9,0),MATCH(M$1,'Умения игроков'!$A$1:$I$1,0))","v":0},{"$f":"INDEX('Умения игроков'!$A$1:$I$9,MATCH($H2,'Умения игроков'!$A$1:$A$9,0),MATCH(N$1,'Умения игроков'!$A$1:$I$1,0))","v":0},{"$f":"INDEX('Умения игроков'!$A$1:$I$9,MATCH($H2,'Умения игроков'!$A$1:$A$9,0),MATCH(O$1,'Умения игроков'!$A$1:$I$1,0))","v":0},{"$f":"INDEX('Умения игроков'!$A$1:$I$9,MATCH($H2,'Умения игроков'!$A$1:$A$9,0),MATCH(P$1,'Умения игроков'!$A$1:$I$1,0))","v":0},{"$f":"INDEX('Умения игроков'!$A$1:$I$9,MATCH($H2,'Умения игроков'!$A$1:$A$9,0),MATCH(Q$1,'Умения игроков'!$A$1:$I$1,0))","v":0},{"$f":"INDEX('Умения игроков'!$A$1:$I$9,MATCH($H2,'Умения игроков'!$A$1:$A$9,0),MATCH(R$1,'Умения игроков'!$A$1:$I$1,0))","v":0},{"$f":"INDEX('Умения игроков'!$A$1:$I$9,MATCH($H2,'Умения игроков'!$A$1:$A$9,0),MATCH(S$1,'Умения игроков'!$A$1:$I$1,0))","v":0},{"$f":"INDEX('Умения игроков'!$A$1:$I$9,MATCH($H2,'Умения игроков'!$A$1:$A$9,0),MATCH(T$1,'Умения игроков'!$A$1:$I$1,0))","v":0},null,35]
[{"$f":"IF(A2=\"\",\"\",A2)","v":""},{"$f":"IF(B2=\"\",\"\",B2)","v":""},{"$f":"IF(C2=\"\",\"\",C2)","v":""},"",2,null,null,"Gk",null,20,null,66,{"$f":"INDEX('Умения игроков'!$A$1:$I$9,MATCH($H3,'Умения игроков'!$A$1:$A$9,0),MATCH(M$1,'Умения игроков'!$A$1:$I$1,0))","v":0},{"$f":"INDEX('Умения игроков'!$A$1:$I$9,MATCH($H3,'Умения игроков'!$A$1:$A$9,0),MATCH(N$1,'Умения игроков'!$A$1:$I$1,0))","v":0},{"$f":"INDEX('Умения игроков'!$A$1:$I$9,MATCH($H3,'Умения игроков'!$A$1:$A$9,0),MATCH(O$1,'Умения игроков'!$A$1:$I$1,0))","v":0},{"$f":"INDEX('Умения игроков'!$A$1:$I$9,MATCH($H3,'Умения игроков'!$A$1:$A$9,0),MATCH(P$1,'Умения игроков'!$A$1:$I$1,0))","v":0},{"$f":"INDEX('Умения игроков'!$A$1:$I$9,MATCH($H3,'Умения игроков'!$A$1:$A$9,0),MATCH(Q$1,'Умения игроков'!$A$1:$I$1,0))","v":0},{"$f":"INDEX('Умения игроков'!$A$1:$I$9,MATCH($H3,'Умения игроков'!$A$1:$A$9,0),MATCH(R$1,'Умения игроков'!$A$1:$I$1,0))","v":0},{"$f":"INDEX('Умения игроков'!$A$1:$I$9,MATCH($H3,'Умения игроков'!$A$1:$A$9,0),MATCH(S$1,'Умения игроков'!$A$1:$I$1,0))","v":0},{"$f":"INDEX('Умения игроков'!$A$1:$I$9,MATCH($H3,'Умения игроков'!$A$1:$A$9,0),MATCH(T$1,'Умения игроков'!$A$1:$I$1,0))","v":0},null,35]
[{"$f":"IF(A3=\"\",\"\",A3)","v":""},{"$f":"IF(B3=\"\",\"\",B3)","v":""},"","",3,null,null,"Ld",null,20,null,{"$f":"SUM(M4:T4)","v":66},{"$f":"INDEX('Умения игроков'!$A$1:$I$9,MATCH($H4,'Умения игроков'!$A$1:$A$9,0),MATCH(M$1,'Умения игроков'!$A$1:$I$1,0))","v":12},{"$f":"INDEX('Умения игроков'!$A$1:$I$9,MATCH($H4,'Умения игроков'!$A$1:$A$9,0),MATCH(N$1,'Умения игроков'!$A$1:$I$1,0))","v":12},{"$f":"INDEX('Умения игроков'!$A$1:$I$9,MATCH($H4,'Умения игроков'!$A$1:$A$9,0),MATCH(O$1,'Умения игроков'!$A$1:$I$1,0))","v":6},{"$f":"INDEX('Умения игроков'!$A$1:$I$9,MATCH($H4,'Умения игроков'!$A$1:$A$9,0),MATCH(P$1,'Умения игроков'!$A$1:$I$1,0))","v":6},{"$f":"INDEX('Умения игроков'!$A$1:$I$9,MATCH($H4,'Умения игроков'!$A$1:$A$9,0),MATCH(Q$1,'Умения игроков'!$A$1:$I$1,0))","v":12},{"$f":"INDEX('Умения игроков'!$A$1:$I$9,MATCH($H4,'Умения игроков'!$A$1:$A$9,0),MATCH(R$1,'Умения игроков'!$A$1:$I$1,0))","v":6},{"$f":"INDEX('Умения игроков'!$A$1:$I$9,MATCH($H4,'Умения игроков'!$A$1:$A$9,0),MATCH(S$1,'Умения игроков'!$A$1:$I$1,0))","v":6},{"$f":"INDEX('Умения игроков'!$A$1:$I$9,MATCH($H4,'Умения игроков'!$A$1:$A$9,0),MATCH(T$1,'Умения игроков'!$A$1:$I$1,0))","v":6},null,35]
["","","","",4,null,null,"Cd",null,20,null,{"$f":"SUM(M5:T5)","v":66},{"$f":"INDEX('Умения игроков'!$A$1:$I$9,MATCH($H5,'Умения игроков'!$A$1:$A$9,0),MATCH(M$1,'Умения игроков'!$A$1:$I$1,0))","v":12},{"$f":"INDEX('Умения игроков'!$A$1:$I$9,MATCH($H5,'Умения игроков'!$A$1:$A$9,0),MATCH(N$1,'Умения игроков'!$A$1:$I$1,0))","v":12},{"$f":"INDEX('Умения игроков'!$A$1:$I$9,MATCH($H5,'Умения игроков'!$A$1:$A$9,0),MATCH(O$1,'Умения игроков'!$A$1:$I$1,0))","v":6},{"$f":"INDEX('Умения игроков'!$A$1:$I$9,MATCH($H5,'Умения игроков'!$A$1:$A$9,0),MATCH(P$1,'Умения игроков'!$A$1:$I$1,0))","v":6},{"$f":"INDEX('Умения игроков'!$A$1:$I$9,MATCH($H5,'Умения игроков'!$A$1:$A$9,0),MATCH(Q$1,'Умения игроков'!$A$1:$I$1,0))","v":12},{"$f":"INDEX('Умения игроков'!$A$1:$I$9,MATCH($H5,'Умения игроков'!$A$1:$A$9,0),MATCH(R$1,'Умения игроков'!$A$1:$I$1,0))","v":6},{"$f":"INDEX('Умения игроков'!$A$1:$I$9,MATCH($H5,'Умения игроков'!$A$1:$A$9,0),MATCH(S$1,'Умения игроков'!$A$1:$I$1,0))","v":6},{"$f":"INDEX('Умения игроков'!$A$1:$I$9,MATCH($H5,'Умения игроков'!$A$1:$A$9,0),MATCH(T$1,'Умения игроков'!$A$1:$I$1,0))","v":6},null,35]
["","","","",5,null,null,"Cd",null,20,null,66,{"$f":"INDEX('Умения игроков'!$A$1:$I$9,MATCH($H6,'Умения игроков'!$A$1:$A$9,0),MATCH(M$1,'Умения игроков'!$A$1:$I$1,0))","v":12},{"$f":"INDEX('Умения игроков'!$A$1:$I$9,MATCH($H6,'Умения игроков'!$A$1:$A$9,0),MATCH(N$1,'Умения игроков'!$A$1:$I$1,0))","v":12},{"$f":"INDEX('Умения игроков'!$A$1:$I$9,MATCH($H6,'Умения игроков'!$A$1:$A$9,0),MATCH(O$1,'Умения игроков'!$A$1:$I$1,0))","v":6},{"$f":"INDEX('Умения игроков'!$A$1:$I$9,MATCH($H6,'Умения игроков'!$A$1:$A$9,0),MATCH(P$1,'Умения игроков'!$A$1:$I$1,0))","v":6},{"$f":"INDEX('Умения игроков'!$A$1:$I$9,MATCH($H6,'Умения игроков'!$A$1:$A$9,0),MATCH(Q$1,'Умения игроков'!$A$1:$I$1,0))","v":12},{"$f":"INDEX('Умения игроков'!$A$1:$I$9,MATCH($H6,'Умения игроков'!$A$1:$A$9,0),MATCH(R$1,'Умения игроков'!$A$1:$I$1,0))","v":6},{"$f":"INDEX('Умения игроков'!$A$1:$I$9,MATCH($H6,'Умения игроков'!$A$1:$A$9,0),MATCH(S$1,'Умения игроков'!$A$1:$I$1,0))","v":6},{"$f":"INDEX('Умения игроков'!$A$1:$I$9,MATCH($H6,'Умения игроков'!$A$1:$A$9,0),MATCH(T$1,'Умения игроков'!$A$1:$I$1,0))","v":6},null,35]
["","","","",6,null,null,"Cd",null,20,null,66,{"$f":"INDEX('Умения игроков'!$A$1:$I$9,MATCH($H7,'Умения игроков'!$A$1:$A$9,0),MATCH(M$1,'Умения игроков'!$A$1:$I$1,0))","v":12},{"$f":"INDEX('Умения игроков'!$A$1:$I$9,MATCH($H7,'Умения игроков'!$A$1:$A$9,0),MATCH(N$1,'Умения игроков'!$A$1:$I$1,0))","v":12},{"$f":"INDEX('Умения игроков'!$A$1:$I$9,MATCH($H7,'Умения игроков'!$A$1:$A$9,0),MATCH(O$1,'Умения игроков'!$A$1:$I$1,0))","v":6},{"$f":"INDEX('Умения игроков'!$A$1:$I$9,MATCH($H7,'Умения игроков'!$A$1:$A$9,0),MATCH(P$1,'Умения игроков'!$A$1:$I$1,0))","v":6},{"$f":"INDEX('Умения игроков'!$A$1:$I$9,MATCH($H7,'Умения игроков'!$A$1:$A$9,0),MATCH(Q$1,'Умения игроков'!$A$1:$I$1,0))","v":12},{"$f":"INDEX('Умения игроков'!$A$1:$I$9,MATCH($H7,'Умения игроков'!$A$1:$A$9,0),MATCH(R$1,'Умения игроков'!$A$1:$I$1,0))","v":6},{"$f":"INDEX('Умения игроков'!$A$1:$I$9,MATCH($H7,'Умения игроков'!$A$1:$A$9,0),MATCH(S$1,'Умения игроков'!$A$1:$I$1,0))","v":6},{"$f":"INDEX('Умения игроков'!$A$1:$I$9,MATCH($H7,'Умения игроков'!$A$1:$A$9,0),MATCH(T$1,'Умения игроков'!$A$1:$I$1,0))","v":6},null,35]
["","","","",7,null,null,"Cd",null,20,null,66,{"$f":"INDEX('Умения игроков'!$A$1:$I$9,MATCH($H8,'Умения игроков'!$A$1:$A$9,0),MATCH(M$1,'Умения игроков'!$A$1:$I$1,0))","v":12},{"$f":"INDEX('Умения игроков'!$A$1:$I$9,MATCH($H8,'Умения игроков'!$A$1:$A$9,0),MATCH(N$1,'Умения игроков'!$A$1:$I$1,0))","v":12},{"$f":"INDEX('Умения игроков'!$A$1:$I$9,MATCH($H8,'Умения игроков'!$A$1:$A$9,0),MATCH(O$1,'Умения игроков'!$A$1:$I$1,0))","v":6},{"$f":"INDEX('Умения игроков'!$A$1:$I$9,MATCH($H8,'Умения игроков'!$A$1:$A$9,0),MATCH(P$1,'Умения игроков'!$A$1:$I$1,0))","v":6},{"$f":"INDEX('Умения игроков'!$A$1:$I$9,MATCH($H8,'Умения игроков'!$A$1:$A$9,0),MATCH(Q$1,'Умения игроков'!$A$1:$I$1,0))","v":12},{"$f":"INDEX('Умения игроков'!$A$1:$I$9,MATCH($H8,'Умения игроков'!$A$1:$A$9,0),MATCH(R$1,'Умения игроков'!$A$1:$I$1,0))","v":6},{"$f":"INDEX('Умения игроков'!$A$1:$I$9,MATCH($H8,'Умения игроков'!$A$1:$A$9,0),MATCH(S$1,'Умения игроков'!$A$1:$I$1,0))","v":6},{"$f":"INDEX('Умения игроков'!$A$1:$I$9,MATCH($H8,'Умения игроков'!$A$1:$A$9,0),MATCH(T$1,'Умения игроков'!$A$1:$I$1,0))","v":6},null,35]
["","","","",8,null,null,"Rd",null,20,null,66,{"$f":"INDEX('Умения игроков'!$A$1:$I$9,MATCH($H9,'Умения игроков'!$A$1:$A$9,0),MATCH(M$1,'Умения игроков'!$A$1:$I$1,0))","v":12},{"$f":"INDEX('Умения игроков'!$A$1:$I$9,MATCH($H9,'Умения игроков'!$A$1:$A$9,0),MATCH(N$1,'Умения игроков'!$A$1:$I$1,0))","v":12},{"$f":"INDEX('Умения игроков'!$A$1:$I$9,MATCH($H9,'Умения игроков'!$A$1:$A$9,0),MATCH(O$1,'Умения игроков'!$A$1:$I$1,0))","v":6},{"$f":"INDEX('Умения игроков'!$A$1:$I$9,MATCH($H9,'Умения игроков'!$A$1:$A$9,0),MATCH(P$1,'Умения игроков'!$A$1:$I$1,0))","v":6},{"$f":"INDEX('Умения игроков'!$A$1:$I$9,MATCH($H9,'Умения игроков'!$A$1:$A$9,0),MATCH(Q$1,'Умения игроков'!$A$1:$I$1,0))","v":12},{"$f":"INDEX('Умения игроков'!$A$1:$I$9,MATCH($H9,'Умения игроков'!$A$1:$A$9,0),MATCH(R$1,'Умения игроков'!$A$1:$I$1,0))","v":6},{"$f":"INDEX('Умения игроков'!$A$1:$I$9,MATCH($H9,'Умения игроков'!$A$1:$A$9,0),MATCH(S$1,'Умения игроков'!$A$1:$I$1,0))","v":6},{"$f":"INDEX('Умения игроков'!$A$1:$I$9,MATCH($H9,'Умения игроков'!$A$1:$A$9,0),MATCH(T$1,'Умения игроков'!$A$1:$I$1,0))","v":6},null,35]
["","","","",9,null,null,"Lm",null,20,null,66,{"$f":"INDEX('Умения игроков'!$A$1:$I$9,MATCH($H10,'Умения игроков'!$A$1:$A$9,0),MATCH(M$1,'Умения игроков'!$A$1:$I$1,0))","v":6},{"$f":"INDEX('Умения игроков'!$A$1:$I$9,MATCH($H10,'Умения игроков'!$A$1:$A$9,0),MATCH(N$1,'Умения игроков'!$A$1:$I$1,0))","v":6},{"$f":"INDEX('Умения игроков'!$A$1:$I$9,MATCH($H10,'Умения игроков'!$A$1:$A$9,0),MATCH(O$1,'Умения игроков'!$A$1:$I$1,0))","v":12},{"$f":"INDEX('Умения игроков'!$A$1:$I$9,MATCH($H10,'Умения игроков'!$A$1:$A$9,0),MATCH(P$1,'Умения игроков'!$A$1:$I$1,0))","v":6},{"$f":"INDEX('Умения игроков'!$A$1:$I$9,MATCH($H10,'Умения игроков'!$A$1:$A$9,0),MATCH(Q$1,'Умения игроков'!$A$1:$I$1,0))","v":12},{"$f":"INDEX('Умения игроков'!$A$1:$I$9,MATCH($H10,'Умения игроков'!$A$1:$A$9,0),MATCH(R$1,'Умения игроков'!$A$1:$I$1,0))","v":12},{"$f":"INDEX('Умения игроков'!$A$1:$I$9,MATCH($H10,'Умения игроков'!$A$1:$A$9,0),MATCH(S$1,'Умения игроков'!$A$1:$I$1,0))","v":6},{"$f":"INDEX('Умения игроков'!$A$1:$I$9,MATCH($H10,'Умения игроков'!$A$1:$A$9,0),MATCH(T$1,'Умения игроков'!$A$1:$I$1,0))","v":6},null,35]
["","","","",10,null,null,"Lm",null,20,null,66,{"$f":"INDEX('Умения игроков'!$A$1:$I$9,MATCH($H11,'Умения игроков'!$A$1:$A$9,0),MATCH(M$1,'Умения игроков'!$A$1:$I$1,0))","v":6},{"$f":"INDEX('Умения игроков'!$A$1:$I$9,MATCH($H11,'Умения игроков'!$A$1:$A$9,0),MATCH(N$1,'Умения игроков'!$A$1:$I$1,0))","v":6},{"$f":"INDEX('Умения игроков'!$A$1:$I$9,MATCH($H11,'Умения игроков'!$A$1:$A$9,0),MATCH(O$1,'Умения игроков'!$A$1:$I$1,0))","v":12},{"$f":"INDEX('Умения игроков'!$A$1:$I$9,MATCH($H11,'Умения игроков'!$A$1:$A$9,0),MATCH(P$1,'Умения игроков'!$A$1:$I$1,0))","v":6},{"$f":"INDEX('Умения игроков'!$A$1:$I$9,MATCH($H11,'Умения игроков'!$A$1:$A$9,0),MATCH(Q$1,'Умения игроков'!$A$1:$I$1,0))","v":12},{"$f":"INDEX('Умения игроков'!$A$1:$I$9,MATCH($H11,'Умения игроков'!$A$1:$A$9,0),MATCH(R$1,'Умения игроков'!$A$1:$I$1,0))","v":12},{"$f":"INDEX('Умения игроков'!$A$1:$I$9,MATCH($H11,'Умения игроков'!$A$1:$A$9,0),MATCH(S$1,'Умения игроков'!$A$1:$I$1,0))","v":6},{"$f":"INDEX('Умения игроков'!$A$1:$I$9,MATCH($H11,'Умения игроков'!$A$1:$A$9,0),MATCH(T$1,'Умения игроков'!$A$1:$I$1,0))","v":6},null,35]
["","","","",11,null,null,"Cm",null,20,null,66,{"$f":"INDEX('Умения игроков'!$A$1:$I$9,MATCH($H12,'Умения игроков'!$A$1:$A$9,0),MATCH(M$1,'Умения игроков'!$A$1:$I$1,0))","v":6},{"$f":"INDEX('Умения игроков'!$A$1:$I$9,MATCH($H12,'Умения игроков'!$A$1:$A$9,0),MATCH(N$1,'Умения игроков'!$A$1:$I$1,0))","v":6},{"$f":"INDEX('Умения игроков'!$A$1:$I$9,MATCH($H12,'Умения игроков'!$A$1:$A$9,0),MATCH(O$1,'Умения игроков'!$A$1:$I$1,0))","v":12},{"$f":"INDEX('Умения игроков'!$A$1:$I$9,MATCH($H12,'Умения игроков'!$A$1:$A$9,0),MATCH(P$1,'Умения игроков'!$A$1:$I$1,0))","v":6},{"$f":"INDEX('Умения игроков'!$A$1:$I$9,MATCH($H12,'Умения игроков'!$A$1:$A$9,0),MATCH(Q$1,'Умения игроков'!$A$1:$I$1,0))","v":12},{"$f":"INDEX('Умения игроков'!$A$1:$I$9,MATCH($H12,'Умения игроков'!$A$1:$A$9,0),MATCH(R$1,'Умения игроков'!$A$1:$I$1,0))","v":12},{"$f":"INDEX('Умения игроков'!$A$1:$I$9,MATCH($H12,'Умения игроков'!$A$1:$A$9,0),MATCH(S$1,'Умения игроков'!$A$1:$I$1,0))","v":6},{"$f":"INDEX('Умения игроков'!$A$1:$I$9,MATCH($H12,'Умения игроков'!$A$1:$A$9,0),MATCH(T$1,'Умения игроков'!$A$1:$I$1,0))","v":6},null,35]
["","","","",12,null,null,"Cm",null,20,null,66,{"$f":"INDEX('Умения игроков'!$A$1:$I$9,MATCH($H13,'Умения игроков'!$A$1:$A$9,0),MATCH(M$1,'Умения игроков'!$A$1:$I$1,0))","v":6},{"$f":"INDEX('Умения игроков'!$A$1:$I$9,MATCH($H13,'Умения игроков'!$A$1:$A$9,0),MATCH(N$1,'Умения игроков'!$A$1:$I$1,0))","v":6},{"$f":"INDEX('Умения игроков'!$A$1:$I$9,MATCH($H13,'Умения игроков'!$A$1:$A$9,0),MATCH(O$1,'Умения игроков'!$A$1:$I$1,0))","v":12},{"$f":"INDEX('Умения игроков'!$A$1:$I$9,MATCH($H13,'Умения игроков'!$A$1:$A$9,0),MATCH(P$1,'Умения игроков'!$A$1:$I$1,0))","v":6},{"$f":"INDEX('Умения игроков'!$A$1:$I$9,MATCH($H13,'Умения игроков'!$A$1:$A$9,0),MATCH(Q$1,'Умения игроков'!$A$1:$I$1,0))","v":12},{"$f":"INDEX('Умения игроков'!$A$1:$I$9,MATCH($H13,'Умения игроков'!$A$1:$A$9,0),MATCH(R$1,'Умения игроков'!$A$1:$I$1,0))","v":12},{"$f":"INDEX('Умения игроков'!$A$1:$I$9,MATCH($H13,'Умения игроков'!$A$1:$A$9,0),MATCH(S$1,'Умения игроков'!$A$1:$I$1,0))","v":6},{"$f":"INDEX('Умения игроков'!$A$1:$I$9,MATCH($H13,'Умения игроков'!$A$1:$A$9,0),MATCH(T$1,'Умения игроков'!$A$1:$I$1,0))","v":6},null,35]
["","","","",13,null,null,"Cm",null,20,null,66,{"$f":"INDEX('Умения игроков'!$A$1:$I$9,MATCH($H14,'Умения игроков'!$A$1:$A$9,0),MATCH(M$1,'Умения игроков'!$A$1:$I$1,0))","v":6},{"$f":"INDEX('Умения игроков'!$A$1:$I$9,MATCH($H14,'Умения игроков'!$A$1:$A$9,0),MATCH(N$1,'Умения игроков'!$A$1:$I$1,0))","v":6},{"$f":"INDEX('Умения игроков'!$A$1:$I$9,MATCH($H14,'Умения игроков'!$A$1:$A$9,0),MATCH(O$1,'Умения игроков'!$A$1:$I$1,0))","v":12},{"$f":"INDEX('Умения игроков'!$A$1:$I$9,MATCH($H14,'Умения игроков'!$A$1:$A$9,0),MATCH(P$1,'Умения игроков'!$A$1:$I$1,0))","v":6},{"$f":"INDEX('Умения игроков'!$A$1:$I$9,MATCH($H14,'Умения игроков'!$A$1:$A$9,0),MATCH(Q$1,'Умения игроков'!$A$1:$I$1,0))","v":12},{"$f":"INDEX('Умения игроков'!$A$1:$I$9,MATCH($H14,'Умения игроков'!$A$1:$A$9,0),MATCH(R$1,'Умения игроков'!$A$1:$I$1,0))","v":12},{"$f":"INDEX('Умения игроков'!$A$1:$I$9,MATCH($H14,'Умения игроков'!$A$1:$A$9,0),MATCH(S$1,'Умения игроков'!$A$1:$I$1,0))","v":6},{"$f":"INDEX('Умения игроков'!$A$1:$I$9,MATCH($H14,'Умения игроков'!$A$1:$A$9,0),MATCH(T$1,'Умения игроков'!$A$1:$I$1,0))","v":6},null,35]
["","","","",14,null,null,"Cm",null,20,null,66,{"$f":"INDEX('Умения игроков'!$A$1:$I$9,MATCH($H15,'Умения игроков'!$A$1:$A$9,0),MATCH(M$1,'Умения игроков'!$A$1:$I$1,0))","v":6},{"$f":"INDEX('Умения игроков'!$A$1:$I$9,MATCH($H15,'Умения игроков'!$A$1:$A$9,0),MATCH(N$1,'Умения игроков'!$A$1:$I$1,0))","v":6},{"$f":"INDEX('Умения игроков'!$A$1:$I$9,MATCH($H15,'Умения игроков'!$A$1:$A$9,0),MATCH(O$1,'Умения игроков'!$A$1:$I$1,0))","v":12},{"$f":"INDEX('Умения игроков'!$A$1:$I$9,MATCH($H15,'Умения игроков'!$A$1:$A$9,0),MATCH(P$1,'Умения игроков'!$A$1:$I$1,0))","v":6},{"$f":"INDEX('Умения игроков'!$A$1:$I$9,MATCH($H15,'Умения игроков'!$A$1:$A$9,0),MATCH(Q$1,'Умения игроков'!$A$1:$I$1,0))","v":12},{"$f":"INDEX('Умения игроков'!$A$1:$I$9,MATCH($H15,'Умения игроков'!$A$1:$A$9,0),MATCH(R$1,'Умения игроков'!$A$1:$I$1,0))","v":12},{"$f":"INDEX('Умения игроков'!$A$1:$I$9,MATCH($H15,'Умения игроков'!$A$1:$A$9,0),MATCH(S$1,'Умения игроков'!$A$1:$I$1,0))","v":6},{"$f":"INDEX('Умения игроков'!$A$1:$I$9,MATCH($H15,'Умения игроков'!$A$1:$A$9,0),MATCH(T$1,'Умения игроков'!$A$1:$I$1,0))","v":6},null,35]
["","","","",15,null,null,"Rm",null,20,null,66,{"$f":"INDEX('Умения игроков'!$A$1:$I$9,MATCH($H16,'Умения игроков'!$A$1:$A$9,0),MATCH(M$1,'Умения игроков'!$A$1:$I$1,0))","v":6},{"$f":"INDEX('Умения игроков'!$A$1:$I$9,MATCH($H16,'Умения игроков'!$A$1:$A$9,0),MATCH(N$1,'Умения игроков'!$A$1:$I$1,0))","v":6},{"$f":"INDEX('Умения игроков'!$A$1:$I$9,MATCH($H16,'Умения игроков'!$A$1:$A$9,0),MATCH(O$1,'Умения игроков'!$A$1:$I$1,0))","v":12},{"$f":"INDEX('Умения игроков'!$A$1:$I$9,MATCH($H16,'Умения игроков'!$A$1:$A$9,0),MATCH(P$1,'Умения игроков'!$A$1:$I$1,0))","v":6},{"$f":"INDEX('Умения игроков'!$A$1:$I$9,MATCH($H16,'Умения игроков'!$A$1:$A$9,0),MATCH(Q$1,'Умения игроков'!$A$1:$I$1,0))","v":12},{"$f":"INDEX('Умения игроков'!$A$1:$I$9,MATCH($H16,'Умения игроков'!$A$1:$A$9,0),MATCH(R$1,'Умения игроков'!$A$1:$I$1,0))","v":12},{"$f":"INDEX('Умения игроков'!$A$1:$I$9,MATCH($H16,'Умения игроков'!$A$1:$A$9,0),MATCH(S$1,'Умения игроков'!$A$1:$I$1,0))","v":6},{"$f":"INDEX('Умения игроков'!$A$1:$I$9,MATCH($H16,'Умения игроков'!$A$1:$A$9,0),MATCH(T$1,'Умения игроков'!$A$1:$I$1,0))","v":6},null,35]
["","","","",16,null,null,"Rm",null,20,null,66,{"$f":"INDEX('Умения игроков'!$A$1:$I$9,MATCH($H17,'Умения игроков'!$A$1:$A$9,0),MATCH(M$1,'Умения игроков'!$A$1:$I$1,0))","v":6},{"$f":"INDEX('Умения игроков'!$A$1:$I$9,MATCH($H17,'Умения игроков'!$A$1:$A$9,0),MATCH(N$1,'Умения игроков'!$A$1:$I$1,0))","v":6},{"$f":"INDEX('Умения игроков'!$A$1:$I$9,MATCH($H17,'Умения игроков'!$A$1:$A$9,0),MATCH(O$1,'Умения игроков'!$A$1:$I$1,0))","v":12},{"$f":"INDEX('Умения игроков'!$A$1:$I$9,MATCH($H17,'Умения игроков'!$A$1:$A$9,0),MATCH(P$1,'Умения игроков'!$A$1:$I$1,0))","v":6},{"$f":"INDEX('Умения игроков'!$A$1:$I$9,MATCH($H17,'Умения игроков'!$A$1:$A$9,0),MATCH(Q$1,'Умения игроков'!$A$1:$I$1,0))","v":12},{"$f":"INDEX('Умения игроков'!$A$1:$I$9,MATCH($H17,'Умения игроков'!$A$1:$A$9,0),MATCH(R$1,'Умения игроков'!$A$1:$I$1,0))","v":12},{"$f":"INDEX('Умения игроков'!$A$1:$I$9,MATCH($H17,'Умения игроков'!$A$1:$A$9,0),MATCH(S$1,'Умения игроков'!$A$1:$I$1,0))","v":6},{"$f":"INDEX('Умения игроков'!$A$1:$I$9,MATCH($H17,'Умения игроков'!$A$1:$A$9,0),MATCH(T$1,'Умения игроков'!$A$1:$I$1,0))","v":6},null,35]
["","","","",17,null,null,"Cf",null,20,null,66,{"$f":"INDEX('Умения игроков'!$A$1:$I$9,MATCH($H18,'Умения игроков'!$A$1:$A$9,0),MATCH(M$1,'Умения игроков'!$A$1:$I$1,0))","v":6},{"$f":"INDEX('Умения игроков'!$A$1:$I$9,MATCH($H18,'Умения игроков'!$A$1:$A$9,0),MATCH(N$1,'Умения игроков'!$A$1:$I$1,0))","v":6},{"$f":"INDEX('Умения игроков'!$A$1:$I$9,MATCH($H18,'Умения игроков'!$A$1:$A$9,0),MATCH(O$1,'Умения игроков'!$A$1:$I$1,0))","v":6},{"$f":"INDEX('Умения игроков'!$A$1:$I$9,MATCH($H18,'Умения игроков'!$A$1:$A$9,0),MATCH(P$1,'Умения игроков'!$A$1:$I$1,0))","v":6},{"$f":"INDEX('Умения игроков'!$A$1:$I$9,MATCH($H18,'Умения игроков'!$A$1:$A$9,0),MATCH(Q$1,'Умения игроков'!$A$1:$I$1,0))","v":12},{"$f":"INDEX('Умения игроков'!$A$1:$I$9,MATCH($H18,'Умения игроков'!$A$1:$A$9,0),MATCH(R$1,'Умения игроков'!$A$1:$I$1,0))","v":6},{"$f":"INDEX('Умения игроков'!$A$1:$I$9,MATCH($H18,'Умения игроков'!$A$1:$A$9,0),MATCH(S$1,'Умения игроков'!$A$1:$I$1,0))","v":12},{"$f":"INDEX('Умения игроков'!$A$1:$I$9,MATCH($H18,'Умения игроков'!$A$1:$A$9,0),MATCH(T$1,'Умения игроков'!$A$1:$I$1,0))","v":12},null,35]
["","",{"$f":"IF(C18=\"\",\"\",C18)","v":""},{"$f":"IF(D18=\"\",\"\",D18)","v":""},18,null,null,"Cf",null,20,null,66,{"$f":"INDEX('Умения игроков'!$A$1:$I$9,MATCH($H19,'Умения игроков'!$A$1:$A$9,0),MATCH(M$1,'Умения игроков'!$A$1:$I$1,0))","v":6},{"$f":"INDEX('Умения игроков'!$A$1:$I$9,MATCH($H19,'Умения игроков'!$A$1:$A$9,0),MATCH(N$1,'Умения игроков'!$A$1:$I$1,0))","v":6},{"$f":"INDEX('Умения игроков'!$A$1:$I$9,MATCH($H19,'Умения игроков'!$A$1:$A$9,0),MATCH(O$1,'Умения игроков'!$A$1:$I$1,0))","v":6},{"$f":"INDEX('Умения игроков'!$A$1:$I$9,MATCH($H19,'Умения игроков'!$A$1:$A$9,0),MATCH(P$1,'Умения игроков'!$A$1:$I$1,0))","v":6},{"$f":"INDEX('Умения игроков'!$A$1:$I$9,MATCH($H19,'Умения игроков'!$A$1:$A$9,0),MATCH(Q$1,'Умения игроков'!$A$1:$I$1,0))","v":12},{"$f":"INDEX('Умения игроков'!$A$1:$I$9,MATCH($H19,'Умения игроков'!$A$1:$A$9,0),MATCH(R$1,'Умения игроков'!$A$1:$I$1,0))","v":6},{"$f":"INDEX('Умения игроков'!$A$1:$I$9,MATCH($H19,'Умения игроков'!$A$1:$A$9,0),MATCH(S$1,'Умения игроков'!$A$1:$I$1,0))","v":12},{"$f":"INDEX('Умения игроков'!$A$1:$I$9,MATCH($H19,'Умения игроков'!$A$1:$A$9,0),MATCH(T$1,'Умения игроков'!$A$1:$I$1,0))","v":12},null,35]
["","","","",19,null,null,"Cf",null,20,null,66,{"$f":"INDEX('Умения игроков'!$A$1:$I$9,MATCH($H20,'Умения игроков'!$A$1:$A$9,0),MATCH(M$1,'Умения игроков'!$A$1:$I$1,0))","v":6},{"$f":"INDEX('Умения игроков'!$A$1:$I$9,MATCH($H20,'Умения игроков'!$A$1:$A$9,0),MATCH(N$1,'Умения игроков'!$A$1:$I$1,0))","v":6},{"$f":"INDEX('Умения игроков'!$A$1:$I$9,MATCH($H20,'Умения игроков'!$A$1:$A$9,0),MATCH(O$1,'Умения игроков'!$A$1:$I$1,0))","v":6},{"$f":"INDEX('Умения игроков'!$A$1:$I$9,MATCH($H20,'Умения игроков'!$A$1:$A$9,0),MATCH(P$1,'Умения игроков'!$A$1:$I$1,0))","v":6},{"$f":"INDEX('Умения игроков'!$A$1:$I$9,MATCH($H20,'Умения игроков'!$A$1:$A$9,0),MATCH(Q$1,'Умения игроков'!$A$1:$I$1,0))","v":12},{"$f":"INDEX('Умения игроков'!$A$1:$I$9,MATCH($H20,'Умения игроков'!$A$1:$A$9,0),MATCH(R$1,'Умения игроков'!$A$1:$I$1,0))","v":6},{"$f":"INDEX('Умения игроков'!$A$1:$I$9,MATCH($H20,'Умения игроков'!$A$1:$A$9,0),MATCH(S$1,'Умения игроков'!$A$1:$I$1,0))","v":12},{"$f":"INDEX('Умения игроков'!$A$1:$I$9,MATCH($H20,'Умения игроков'!$A$1:$A$9,0),MATCH(T$1,'Умения игроков'!$A$1:$I$1,0))","v":12},null,35]
["","","","",20,null,null,"Cf",null,20,null,66,{"$f":"INDEX('Умения игроков'!$A$1:$I$9,MATCH($H21,'Умения игроков'!$A$1:$A$9,0),MATCH(M$1,'Умения игроков'!$A$1:$I$1,0))","v":6},{"$f":"INDEX('Умения игроков'!$A$1:$I$9,MATCH($H21,'Умения игроков'!$A$1:$A$9,0),MATCH(N$1,'Умения игроков'!$A$1:$I$1,0))","v":6},{"$f":"INDEX('Умения игроков'!$A$1:$I$9,MATCH($H21,'Умения игроков'!$A$1:$A$9,0),MATCH(O$1,'Умения игроков'!$A$1:$I$1,0))","v":6},{"$f":"INDEX('Умения игроков'!$A$1:$I$9,MATCH($H21,'Умения игроков'!$A$1:$A$9,0),MATCH(P$1,'Умения игроков'!$A$1:$I$1,0))","v":6},{"$f":"INDEX('Умения игроков'!$A$1:$I$9,MATCH($H21,'Умения игроков'!$A$1:$A$9,0),MATCH(Q$1,'Умения игроков'!$A$1:$I$1,0))","v":12},{"$f":"INDEX('Умения игроков'!$A$1:$I$9,MATCH($H21,'Умения игроков'!$A$1:$A$9,0),MATCH(R$1,'Умения игроков'!$A$1:$I$1,0))","v":6},{"$f":"INDEX('Умения игроков'!$A$1:$I$9,MATCH($H21,'Умения игроков'!$A$1:$A$9,0),MATCH(S$1,'Умения игроков'!$A$1:$I$1,0))","v":12},{"$f":"INDEX('Умения игроков'!$A$1:$I$9,MATCH($H21,'Умения игроков'!$A$1:$A$9,0),MATCH(T$1,'Умения игроков'!$A$1:$I$1,0))","v":12},null,35]

{"sheet":"Особенности","index":1,"n_rows":9,"n_cols":3,"rows_kept":9,"cut":false,"hidden":true,"merged":[]}
["id","Особенность"]
[1,"Работяга","Игрок набирает опыт по шкале предыдущего таланта, т.е. т9 как т8, т8 как т7 и т.д. (таланты 2 и 3 не могут получить данную особенность)"]
[2,"Умелец","Игрок может получить пятый бонус. Набор очков бонуса идёт с коэффициентом 4. "]
[3,"Скромняга","Зарплата игрока имеет понижающий коэффициент 0,7."]
[4,"Несгибаемый","Мораль игрока всегда 20."]
[5,"Долгожитель","Падение мастерства происходит с коэффициентом 0,5."]
[6,"Универсал","Набор очков при тренировке совмещения происходит с коэффициентом 4. Добавляет +4 уровня к бонусу Ун. (Не применимо для вратарей)"]
[7,"Профильный","Прокачка профильного умения происходит на 20% лучше. (Не применимо для вратарей)"]
[8,"Выносливый","Восстановления 2 дополнительных единиц ф/г на тренировке, начисление усталости происходит с коэффициентом 0,5."]

{"sheet":"Умения игроков","index":2,"n_rows":9,"n_cols":9,"rows_kept":9,"cut":false,"hidden":true,"merged":[]}
[null,"Tck","Mrk","Drb","Rcv","Edu","Pas","Shp","Sha"]
["Gk",0,0,0,0,0,0,0,0]
["Ld",12,12,6,6,12,6,6,6]
["Cd",12,12,6,6,12,6,6,6]
["Rd",12,12,6,6,12,6,6,6]
["Lm",6,6,12,6,12,12,6,6]
["Cm",6,6,12,6,12,12,6,6]
["Rm",6,6,12,6,12,12,6,6]
["Cf",6,6,6,6,12,6,12,12]

{"sheet":"Таланты","index":3,"n_rows":5,"n_cols":2,"rows_kept":5,"cut":false,"hidden":true,"merged":[]}
["Талант","Кол-во"]
[1,4]
[2,6]
[3,6]
[4,4]

{"sheet":"Совмещения","index":4,"n_rows":18,"n_cols":11,"rows_kept":18,"cut":false,"hidden":true,"merged":[]}
[null,"Ld","Cd","Rd","Lm","Cm","Rm","Cf",null,"Макс совмещений",10]
["Sw",0,1,0,0,0,0,0]
["Ld",0,1,1,1,0,0,0]
["Cd",1,0,1,0,0,0,0]
["Rd",1,1,0,0,0,1,0]
["Lwd",1,1,0,1,0,0,0]
["Dm",0,1,0,0,1,0,0]
["Rwd",0,1,1,0,1,1,0]
["Lm",1,0,0,0,1,1,0]
["Cm",0,0,0,1,0,1,0]
["Rm",0,0,1,1,1,0,0]
["Lw",0,0,0,1,1,0,1]
["Am",0,0,0,0,1,0,1]
["Rw",0,0,0,0,1,1,1]
["Lf",0,0,0,1,0,0,1]
["Cf",0,0,0,0,0,0,0]
["Rf",0,0,0,0,0,1,1]
["Сумма",{"$f":"SUM(B2:B17)","v":4},{"$f":"SUM(C2:C17)","v":6},4,6,7,6,5]